bitfinex-derivatives/quotes_BNBF0:USTF0_20250303
["timestamp","ask_amount","ask_price","bid_price","bid_amount"]
[1741029285379,1.901,579.08,577.94,1.27507133]
[1741029285582,1.901,579.08,577.95,0.27943023]
[1741029285784,1.901,579.08,577.94,1.27507133]
[1741029285983,1.901,579.08,577.95,0.27942424]
[1741029286579,1.901,579.08,577.96,0.27942424]
[1741029286781,1.901,579.08,577.97,0.27942424]
[1741029286984,1.901,579.08,577.52,1.27507133]
[1741029287179,1.901,579.08,577.53,0.27932799]
[1741029287379,1.901,579.08,577.54,0.27932799]
[1741029287583,1.901,579.08,577.55,0.27932799]
[1741029287785,1.901,579.08,577.56,0.27932799]
[1741029287988,1.901,579.08,577.57,0.27932799]
[1741029288281,1.901,579.08,577.58,0.27932799]
[1741029288481,1.901,579.08,577.93,1.27507133]
[1741029288681,1.901,579.08,577.94,0.27945309]
[1741029290885,1.901,579.08,577.71,0.27945309]
[1741029291082,1.901,579.08,577.73,0.34618247]
[1741029291285,1.901,579.08,577.74,0.27945309]
[1741029291484,1.901,579.08,577.75,0.27945309]
[1741029291683,1.901,579.08,577.77,0.3461585]
[1741029291888,1.901,579.08,577.78,0.27945309]
[1741029292087,1.901,579.08,577.79,0.27945309]
[1741029292287,1.901,579.08,577.8,0.27945309]
[1741029292487,1.901,579.08,577.81,0.27945309]
[1741029292691,1.901,579.08,577.82,0.27945309]
[1741029292887,1.901,579.08,577.93,1.27507133]
[1741029293087,1.901,579.08,577.94,0.27945309]
[1741029293286,1.901,579.08,577.95,0.2796697]
[1741029293489,1.80525235,579.07,577.94,0.2796697]
[1741029293690,0.34538735,579.06,577.95,0.2796697]
[1741029293990,0.34538735,579.06,577.93,1.27507133]
[1741029293991,0.34538735,579.06,577.96,0.2796697]
[1741029294191,0.34538735,579.06,577.94,0.2796697]
[1741029294491,0.34538735,579.06,577.93,1.27507133]
[1741029295188,0.34538735,579.06,577.77,0.3461585]
[1741029295392,0.34538735,579.06,577.78,0.27969896]
[1741029296593,1.80523674,579.05,577.78,0.27969896]
[1741029298093,0.31780411,579.04,577.78,0.27969896]
[1741029298894,1.80523674,579.05,577.78,0.27969896]
[1741029299090,0.34538735,579.06,577.78,0.27969896]
[1741029299397,1.80540844,579.04,577.78,0.27969896]
[1741029300095,1.383,579.03,577.78,0.27969896]
[1741029300499,0.66316077,579.02,577.78,0.27969896]
[1741029300692,0.66316077,579.02,577.77,0.3461585]
[1741029300693,0.34541121,579.02,577.79,0.27969896]
[1741029300894,0.34541121,579.02,577.8,0.27971666]
[1741029301095,0.34541121,579.02,577.77,0.3461585]
[1741029301293,0.34541121,579.02,577.78,0.27969446]
[1741029301796,0.31785914,579.01,577.77,0.3461585]
[1741029301992,0.31789147,579.01,577.78,0.27981166]
[1741029302192,0.34541121,579.02,577.78,0.27981166]
[1741029302399,1.8053382,579.01,577.79,0.27981166]
[1741029302593,1.8053382,579.01,577.8,0.27981166]
[1741029302800,1.8053382,579.01,577.81,0.27981166]
[1741029302994,1.174,579.0,577.24,0.27981166]
[1741029303299,1.174,579.0,577.35,1.27507133]
[1741029303503,1.174,579.0,577.36,0.27981166]
[1741029304100,1.174,579.0,577.37,0.27981166]
[1741029304296,1.174,579.0,577.38,0.27981166]
[1741029304502,1.174,579.0,577.39,0.27981166]
[1741029304703,1.174,579.0,577.4,0.27981166]
[1741029304902,1.174,579.0,577.41,0.27981166]
[1741029305504,1.174,579.0,577.42,0.27981166]
[1741029306007,1.174,579.0,577.44,0.34635633]
[1741029306313,1.174,579.0,577.77,1.27507133]
[1741029306505,1.174,579.0,577.78,0.27981166]
[1741029306707,1.174,579.0,577.79,0.27981166]
[1741029306904,1.174,579.0,577.8,0.27981166]
[1741029307104,1.174,579.0,577.81,0.27981166]
[1741029307302,1.174,579.0,577.82,0.27981166]
[1741029307501,1.174,579.0,577.83,0.27981166]
[1741029307700,1.174,579.0,577.84,0.2791692]
[1741029307902,1.174,579.0,577.85,0.2791692]
[1741029308101,1.174,579.0,577.86,0.2791692]
[1741029308306,1.174,579.0,577.87,0.2791692]
[1741029308506,1.174,579.0,577.88,0.2791692]
[1741029308702,1.174,579.0,577.89,0.2791692]
[1741029308907,1.174,579.0,577.9,0.2791692]
[1741029309107,1.174,579.0,577.91,0.2791692]
[1741029309301,1.174,579.0,577.92,0.27934639]
[1741029309507,1.174,579.0,577.93,0.27934639]
[1741029309808,1.174,579.0,578.43,1.27507133]
[1741029310102,1.174,579.0,578.44,0.27934639]
[1741029310307,1.174,579.0,578.45,0.27924088]
[1741029310504,1.174,579.0,578.46,0.27924088]
[1741029310808,1.174,579.0,578.47,0.27924088]
[1741029311005,1.174,579.0,578.44,0.27924088]
[1741029311203,1.174,579.0,578.45,0.27924088]
[1741029311408,1.174,579.0,578.43,1.27507133]
[1741029311409,1.174,579.0,578.44,0.27924088]
[1741029311705,1.174,579.0,578.45,0.27924088]
[1741029312008,1.174,579.0,578.46,0.27924088]
[1741029312406,1.174,579.0,578.47,0.27924088]
[1741029312602,1.174,579.0,578.48,0.27924088]
[1741029312803,1.174,579.0,578.31,0.27924088]
[1741029313008,1.174,579.0,578.32,0.27924088]
[1741029313207,1.174,579.0,578.31,0.27924088]
[1741029313403,1.174,579.0,578.32,0.27924088]
[1741029313608,1.174,579.0,578.33,0.27924088]
[1741029313818,1.174,579.0,577.82,1.27507133]
[1741029314111,1.174,579.0,577.83,0.27948009]
[1741029314310,1.174,579.0,577.84,0.27948009]
[1741029314511,1.174,579.0,577.85,0.27948009]
[1741029314706,1.174,579.0,577.86,0.27948009]
[1741029314907,1.174,579.0,577.87,0.27948009]
[1741029315107,1.174,579.0,577.83,0.27948009]
[1741029315309,1.174,579.0,577.88,0.27948009]
[1741029315504,1.174,579.0,577.89,0.27948009]
[1741029315708,1.174,579.0,577.47,2.60327065]
[1741029315709,1.174,579.0,577.88,1.27507133]
[1741029315903,1.174,579.0,577.89,0.27948009]
[1741029316310,1.174,579.0,577.91,0.34607464]
[1741029317508,1.80558018,578.99,577.91,0.34607464]
[1741029318307,0.31787889,578.98,577.91,0.34607464]
[1741029318911,1.80558018,578.99,577.91,0.34607464]
[1741029319309,0.31790964,578.98,577.91,0.34607464]
[1741029320409,3.07974045,578.98,577.91,0.34607464]
[1741029320609,3.11055627,578.97,577.91,0.34607464]
[1741029320809,3.11055627,578.96,577.91,0.34607464]
[1741029321012,3.11055627,578.95,577.91,0.34607464]
[1741029321319,4.75612373,578.94,577.91,0.34607464]
[1741029321518,1.64556746,578.89,577.91,0.34607464]
[1741029321718,0.31790964,578.88,577.91,0.34607464]
[1741029321920,1.64587626,578.87,577.91,0.34607464]
[1741029324818,0.31790964,578.67,577.91,0.34607464]
[1741029325120,3.58279706,578.67,577.91,0.34607464]
[1741029325319,0.31790964,578.66,577.91,0.34607464]
[1741029325519,3.10439244,578.66,577.91,0.34607464]
[1741029325714,3.10439244,578.65,577.91,0.34607464]
[1741029325915,3.10439244,578.64,577.91,0.34607464]
[1741029326114,3.10439244,578.63,577.91,0.34607464]
[1741029326319,1.73054713,578.62,577.91,0.34607464]
[1741029326522,3.11884219,578.63,577.91,0.34607464]
[1741029326822,2.7859694,578.62,577.91,0.34607464]
[1741029327015,0.3181304,578.61,577.91,0.34607464]
[1741029327217,2.04952838,578.61,577.91,0.34607464]
[1741029327420,0.3181304,578.6,577.91,0.34607464]
[1741029327816,3.58185223,578.6,577.91,0.34607464]
[1741029328020,0.3181304,578.59,577.91,0.34607464]
[1741029328216,1.63570068,578.57,577.91,0.34607464]
[1741029328420,1.95383108,578.56,577.91,0.34607464]
[1741029328623,0.3181304,578.55,577.91,0.34607464]
[1741029328829,7.24518418,578.58,577.91,0.34607464]
[1741029329030,7.93776513,578.57,577.91,0.34607464]
[1741029329224,1.64587626,578.83,577.91,0.34607464]
[1741029329225,7.24518418,578.56,577.91,0.34607464]
[1741029329431,7.24518418,578.55,577.91,0.34607464]
[1741029329624,2.74340798,578.54,577.91,0.34607464]
[1741029329827,1.05515691,578.54,577.91,0.34607464]
[1741029330031,7.93684844,578.55,577.91,0.34607464]
[1741029330328,2.7425239,578.54,577.91,0.34607464]
[1741029330627,0.3181439,578.53,577.91,0.34607464]
[1741029330828,3.05390753,578.53,577.91,0.34607464]
[1741029331024,0.3181439,578.52,577.91,0.34607464]
[1741029331226,1.63053715,578.48,575.68,1.27507133]
[1741029331426,0.3181439,578.47,575.69,0.28013893]
[1741029331632,0.3181439,578.47,575.7,0.28013893]
[1741029331633,1.64587626,578.47,575.7,0.28013893]
[1741029331835,2.84368105,578.46,575.71,0.28013893]
[1741029332025,1.63053715,578.44,575.72,0.28013893]
[1741029332226,0.3181439,578.43,575.73,0.28013893]
[1741029332428,0.3181439,578.42,575.74,0.28013893]
[1741029332631,3.25522396,578.44,575.68,1.27507133]
[1741029332834,1.37053393,578.43,575.69,0.28022902]
[1741029333032,0.31831715,578.42,575.7,0.28022902]
[1741029333337,0.31831715,578.41,575.71,0.28022902]
[1741029333527,8.77057125,578.42,575.72,0.28022902]
[1741029333726,8.77057125,578.42,575.73,0.28022902]
[1741029333727,8.77057125,578.41,575.73,0.28022902]
[1741029333927,8.77057125,578.4,575.74,0.28022902]
[1741029334132,4.10260577,578.42,575.75,0.28022902]
[1741029334133,8.77057125,578.39,575.75,0.28022902]
[1741029334339,8.77057125,578.38,575.76,0.28022902]
[1741029334628,5.51534729,578.37,575.77,0.28022902]
[1741029334834,8.0639226,578.36,575.78,0.28022902]
[1741029335034,8.0639226,578.36,575.68,1.27507133]
[1741029335035,1.62652779,578.33,575.79,0.28022902]
[1741029335233,1.62234322,578.27,575.8,0.28022902]
[1741029335431,0.31831715,578.26,575.81,0.28022902]
[1741029335735,0.31831715,578.25,575.82,0.28022902]
[1741029335935,9.56565982,578.32,575.2,1.5300856]
[1741029335936,2.77948783,578.31,575.83,0.28022902]
[1741029336234,0.31832203,578.3,575.84,0.28022902]
[1741029336435,1.04669984,578.33,575.85,0.28022902]
[1741029336634,7.22454356,578.43,575.86,0.28022902]
[1741029336828,1.36498373,578.42,575.87,0.28022902]
[1741029337033,1.36498373,578.42,575.75,1.27507133]
[1741029337034,0.31828389,578.41,575.88,0.28022902]
[1741029337232,0.31828389,578.41,575.89,0.28022902]
[1741029337432,0.31828389,578.41,575.9,0.28022902]
[1741029337631,0.31828389,578.41,575.75,1.27507133]
[1741029337632,3.09777172,578.41,575.91,0.28022902]
[1741029337931,2.05107188,578.4,575.92,0.28022902]
[1741029338129,2.05107188,578.4,575.93,0.28022902]
[1741029338130,0.31828389,578.39,575.93,0.28022902]
[1741029338329,2.05107188,578.39,575.94,0.28022902]
[1741029338536,0.31828389,578.38,575.95,0.28022902]
[1741029338738,8.60555275,578.4,575.96,0.28022902]
[1741029338739,8.75507175,578.39,575.96,0.28022902]
[1741029338931,8.75507175,578.38,575.97,0.28022902]
[1741029339236,9.44323091,578.37,575.98,0.28022902]
[1741029339437,5.72532587,578.4,575.99,0.28022902]
[1741029339438,11.06557413,578.36,575.99,0.28022902]
[1741029339629,1.62234322,578.31,576.0,0.28022902]
[1741029339829,1.94062711,578.3,576.01,0.28022902]
[1741029340028,0.31828389,578.29,576.02,0.28022902]
[1741029340235,0.31828389,578.28,576.03,0.28022902]
[1741029340437,0.31828389,578.27,576.04,0.28022902]
[1741029340736,0.31828389,578.26,576.05,0.28022902]
[1741029340931,0.31828389,578.28,576.06,0.28022902]
[1741029341136,0.31828389,578.27,575.16,0.28022902]
[1741029341337,3.02890382,578.28,575.17,0.28022902]
[1741029341531,0.31828389,578.27,575.18,0.28022902]
[1741029341737,0.31828389,578.27,575.19,0.28022902]
[1741029341937,3.02890382,578.27,575.2,0.28022902]
[1741029342138,0.31828389,578.26,575.23,1.27507133]
[1741029342336,1.185,578.25,575.24,0.28022902]
[1741029342531,0.31828389,578.24,575.25,0.28022902]
[1741029342732,1.93422387,578.24,575.26,0.28022902]
[1741029342930,0.31828389,578.23,575.27,0.28022902]
[1741029343137,1.61593998,578.17,575.28,0.28022902]
[1741029343339,1.93164762,578.16,575.29,0.28022902]
[1741029343538,1.61336373,578.11,575.29,0.28022902]
[1741029343738,1.61336373,578.03,575.3,0.28022902]
[1741029343934,1.61336373,578.01,575.3,0.28022902]
[1741029344133,0.31828389,578.1,575.3,0.28022902]
[1741029344435,1.61336373,578.07,575.31,0.28022902]
[1741029344636,1.61336373,577.96,575.32,0.28022902]
[1741029344837,1.60953118,578.01,575.33,0.28022902]
[1741029345039,1.60953118,577.96,575.33,0.28022902]
[1741029345343,1.60953118,577.96,575.23,1.27507133]
[1741029345344,0.31876954,577.95,575.34,0.28067194]
[1741029345645,1.60953118,577.92,575.35,0.28067194]
[1741029345840,1.92830072,577.91,575.36,0.28067194]
[1741029346143,1.60953118,577.89,575.37,0.28067194]
[1741029346441,0.31876954,577.88,575.38,0.28067194]
[1741029346636,0.31876954,577.87,575.39,0.28067194]
[1741029346842,0.31876954,577.88,575.4,0.28067194]
[1741029347143,0.31876954,577.87,575.41,0.28067194]
[1741029347643,0.31876954,577.86,575.42,0.28067194]
[1741029347844,0.31876954,577.86,575.43,0.28067194]
[1741029348037,0.31876954,577.86,574.29,2.60327065]
[1741029348038,4.10298265,577.89,575.44,0.28067194]
[1741029348238,4.10298265,577.89,575.45,0.28067194]
[1741029348445,1.3115507,578.24,575.46,0.28067194]
[1741029348644,2.34774999,578.24,575.47,0.28067194]
[1741029348840,0.31848694,578.23,575.48,0.28067194]
[1741029349146,0.31848694,578.22,575.49,0.28067194]
[1741029349342,2.05197349,578.23,575.5,0.28067194]
[1741029349546,0.31848694,578.22,575.51,0.28067194]
[1741029349846,0.31848694,578.22,574.13,2.60327065]
[1741029349847,0.31848694,578.21,575.52,0.28067194]
[1741029350041,0.31848694,578.21,575.53,0.28067194]
[1741029350240,0.31848694,578.22,575.54,0.28067194]
[1741029350441,1.81017443,578.2,575.55,0.28067194]
[1741029350745,0.31848694,578.19,575.56,0.28067194]
[1741029350940,0.31848694,578.19,575.57,0.28067194]
[1741029351145,0.31848694,578.19,575.58,0.28067194]
[1741029351340,0.31848694,578.19,575.59,0.28067194]
[1741029351541,0.31848694,578.19,575.08,1.27507133]
[1741029351542,0.31848694,578.19,575.6,0.28067194]
[1741029351738,0.31848694,578.19,575.61,0.28067194]
[1741029351939,0.31848694,578.19,575.62,0.28067194]
[1741029352140,0.31848694,578.19,575.63,0.28067194]
[1741029352343,0.31848694,578.19,575.64,0.28067194]
[1741029352543,0.31848694,578.19,575.65,0.28067194]
[1741029352744,0.31848694,578.19,575.66,0.28067194]
[1741029352940,0.31848694,578.19,575.67,0.28067194]
[1741029353143,0.31848694,578.19,575.68,0.28067194]
[1741029353344,0.31848694,578.19,575.69,0.28067194]
[1741029353549,0.31848694,578.19,575.7,0.28067194]
[1741029353744,0.31848694,578.19,575.71,0.28067194]
[1741029353949,0.31848694,578.19,575.72,0.28067194]
[1741029354245,0.31848694,578.18,575.73,0.28067194]
[1741029354451,0.31848694,578.19,575.74,0.28067194]
[1741029354745,0.31848694,578.18,575.75,0.28067194]
[1741029355050,0.31848694,578.17,575.76,0.28067194]
[1741029355247,0.31848694,578.19,575.77,0.28067194]
[1741029355444,0.31848694,578.16,575.78,0.28067194]
[1741029355647,0.31848694,578.18,575.78,0.28067194]
[1741029356048,0.31848694,578.17,575.79,0.28067194]
[1741029356242,0.31848694,578.16,575.8,0.28067194]
[1741029356443,0.31848694,578.19,575.81,0.28067194]
[1741029356643,0.31848694,578.18,575.82,0.28067194]
[1741029356849,0.31848694,578.17,575.83,0.28067194]
[1741029357049,0.31848694,578.16,575.99,1.27507133]
[1741029357249,0.31848694,578.15,576.0,0.28067194]
[1741029357449,1.81017443,578.2,576.01,0.28067194]
[1741029357450,0.31848694,578.19,576.01,0.28067194]
[1741029357650,1.81017443,578.2,575.99,1.27507133]
[1741029357651,0.31848694,578.18,576.02,0.28067194]
[1741029357851,0.31848694,578.19,576.03,0.28067194]
[1741029358046,1.81017443,578.2,575.99,1.27507133]
[1741029358350,0.31846016,578.19,576.0,0.28036867]
[1741029358549,0.31846016,578.18,576.01,0.28036867]
[1741029358747,1.185,578.25,575.99,1.27507133]
[1741029358748,1.185,578.25,576.0,0.28036867]
[1741029358945,1.185,578.25,575.99,1.27507133]
[1741029358946,1.80904523,578.18,576.01,0.28036867]
[1741029359246,0.31832086,578.17,576.02,0.28036867]
[1741029359445,0.31832086,578.16,576.03,0.28036867]
[1741029359644,0.31832086,578.16,576.04,0.28036867]
[1741029359848,0.31832086,578.16,576.05,0.28036867]
[1741029360051,0.31832086,578.16,576.06,0.28036867]
[1741029360352,0.31832086,578.16,575.96,1.27507133]
[1741029360353,0.31832086,578.16,576.07,0.28036867]
[1741029360550,0.31832086,578.16,576.08,0.28036867]
[1741029360748,0.31832086,578.16,575.97,0.28036867]
[1741029360945,0.31832086,578.16,575.98,0.28036867]
[1741029361147,0.31832086,578.16,575.99,0.28036867]
[1741029361350,0.31832086,578.16,576.0,0.28036867]
[1741029361554,0.31832086,578.16,576.01,0.28036867]
[1741029361750,0.31832086,578.16,576.02,0.28036867]
[1741029362253,0.31832086,578.16,576.03,0.28036867]
[1741029362455,1.80902955,578.15,576.03,0.28036867]
[1741029362751,2.70402955,578.15,576.04,0.28036867]
[1741029362950,2.70402955,578.15,576.05,0.28036867]
[1741029363152,0.895,578.15,576.06,0.28036867]
[1741029363353,2.7036378,578.15,576.07,0.28036867]
[1741029363553,2.7036378,578.15,576.08,0.28036867]
[1741029363754,0.895,578.15,576.08,0.28036867]
[1741029364047,0.895,578.15,575.94,1.27507133]
[1741029364048,0.895,578.15,576.09,0.28036867]
[1741029364253,0.895,578.15,576.1,0.28036867]
[1741029364454,0.895,578.15,576.11,0.28036867]
[1741029364652,0.895,578.15,576.12,0.28036867]
[1741029365048,0.895,578.15,575.51,2.60327065]
[1741029365049,0.895,578.15,576.58,1.27507133]
[1741029365251,0.895,578.15,576.59,0.28036867]
[1741029365446,0.895,578.15,576.6,0.28036867]
[1741029365447,0.34594295,578.13,576.6,0.28036867]
[1741029365646,0.34594295,578.13,576.58,1.27507133]
[1741029365852,0.34594295,578.13,576.59,0.27997963]
[1741029366154,0.34594295,578.13,576.6,0.27997963]
[1741029366552,0.34594295,578.13,576.61,0.27997963]
[1741029366752,0.34594295,578.13,576.62,0.27997963]
[1741029366953,0.34594295,578.13,576.63,0.27997963]
[1741029367255,0.34594295,578.13,576.93,1.27507133]
[1741029367456,0.34594295,578.13,576.94,0.27997963]
[1741029367658,0.34594295,578.13,576.95,0.27997963]
[1741029367857,0.34594295,578.13,576.96,0.27997963]
[1741029368051,0.34594295,578.13,576.97,0.27997963]
[1741029368254,0.34594295,578.13,576.94,0.27997963]
[1741029368450,0.34594295,578.13,576.95,0.27997963]
[1741029368756,0.34594295,578.13,576.93,1.27507133]
[1741029368949,0.34594295,578.13,576.96,0.27995083]
[1741029369153,0.34594295,578.13,576.97,0.27995083]
[1741029369350,0.34594295,578.13,576.94,0.27995083]
[1741029369651,0.34594295,578.13,576.95,0.27995083]
[1741029369849,0.34594295,578.13,576.94,0.27995083]
[1741029370049,0.34594295,578.13,576.95,0.27995083]
[1741029370255,0.31826211,578.12,576.48,0.27995083]
[1741029370452,0.31826211,578.12,576.49,0.27995083]
[1741029370759,0.31826211,578.12,576.5,0.27995083]
[1741029371058,0.31826211,578.12,576.51,0.27995083]
[1741029371359,0.34594295,578.13,576.52,0.27995083]
[1741029371554,1.252,578.11,576.53,0.27995083]
[1741029371856,1.252,578.11,576.54,0.27995083]
[1741029372057,1.252,578.11,576.48,0.27995083]
[1741029372258,1.252,578.11,576.49,0.27995083]
[1741029372558,1.252,578.11,576.03,2.60327065]
[1741029372559,1.252,578.11,576.5,0.27995083]
[1741029372759,1.252,578.11,576.51,0.27995083]
[1741029372954,1.252,578.11,576.52,0.27995083]
[1741029373157,1.252,578.11,576.54,0.346897]
[1741029373458,1.252,578.11,576.55,0.27995083]
[1741029373652,1.252,578.11,576.56,0.27995083]
[1741029373857,1.252,578.11,576.57,0.27995083]
[1741029374053,1.252,578.11,576.58,0.27995083]
[1741029374260,1.252,578.11,576.59,0.27995083]
[1741029374451,1.252,578.11,576.55,0.27995083]
[1741029374754,1.80840284,578.1,576.56,0.27995083]
[1741029375053,1.252,578.11,576.57,0.27995083]
[1741029375258,1.80834019,578.1,576.58,0.27995083]
[1741029375555,1.252,578.11,576.59,0.27995083]
[1741029375757,1.252,578.11,576.6,0.27995083]
[1741029375953,1.252,578.11,576.55,0.27995083]
[1741029376158,1.252,578.11,576.56,0.27995083]
[1741029376359,1.252,578.11,576.57,0.27995083]
[1741029376559,0.31827822,578.1,576.58,0.27995083]
[1741029376753,0.31827822,578.1,576.59,0.27995083]
[1741029376956,0.31827822,578.1,576.6,0.27995083]
[1741029377158,0.31827822,578.1,576.55,0.27995083]
[1741029377360,0.31827822,578.1,576.56,0.27995083]
[1741029377761,1.252,578.11,576.57,0.27995083]
[1741029378061,1.252,578.11,576.58,0.27995083]
[1741029378256,1.252,578.11,576.59,0.28011918]
[1741029378460,1.252,578.11,576.55,0.28011918]
[1741029378661,1.252,578.11,576.54,0.346897]
[1741029378662,1.252,578.11,576.56,0.28011918]
[1741029378859,1.252,578.11,576.55,0.28011918]
[1741029379056,1.252,578.11,576.56,0.28011918]
[1741029379358,0.31832154,578.1,576.57,0.28011918]
[1741029379557,0.31832154,578.1,576.55,0.28011918]
[1741029379757,1.252,578.11,576.54,0.346897]
[1741029379959,0.31845793,578.1,576.55,0.28036751]
[1741029380160,1.63068636,578.03,576.55,0.28036751]
[1741029380462,1.96433419,578.02,576.55,0.28036751]
[1741029380659,0.31845793,578.01,576.55,0.28036751]
[1741029381161,0.31845793,578.0,576.55,0.28036751]
[1741029381361,0.31845793,578.02,576.55,0.28036751]
[1741029381657,1.30137654,578.04,576.56,0.28026942]
[1741029381859,1.30137654,578.02,576.55,0.28026942]
[1741029382061,1.30137654,578.02,576.56,0.28026942]
[1741029382357,0.34602076,578.0,576.57,0.28026942]
[1741029382554,0.34602076,578.0,576.58,0.28026942]
[1741029382761,0.34602076,578.0,576.59,0.28026942]
[1741029382962,0.34602076,578.0,576.6,0.28026942]
[1741029383161,0.34602076,578.0,576.61,0.28026942]
[1741029383762,0.34602076,578.0,576.62,0.28026942]
[1741029384564,0.34602076,578.0,576.54,0.346897]
[1741029384565,0.34602076,578.0,576.65,1.27507133]
[1741029384957,0.34602076,578.0,576.66,0.28027171]
[1741029386864,0.31835776,577.99,576.66,0.28027171]
[1741029387264,0.34603872,577.97,576.66,0.28027171]
[1741029387461,0.31835776,577.96,576.66,0.28027171]
[1741029387764,0.34603872,577.97,576.66,0.28027171]
[1741029387958,0.34603872,577.97,576.15,0.28027171]
[1741029388159,0.34603872,577.97,576.17,0.34711977]
[1741029388459,0.34603872,577.97,576.18,0.28027171]
[1741029388663,0.34603872,577.97,576.19,0.28027171]
[1741029388864,0.34603872,577.97,576.2,0.28027171]
[1741029389060,0.34603872,577.97,576.21,0.28027171]
[1741029389265,0.34603872,577.97,576.22,0.28027171]
[1741029389464,1.80900604,577.96,576.23,0.28027171]
[1741029389667,0.34603872,577.97,576.24,0.28027171]
[1741029389868,0.34603872,577.97,576.32,1.27507133]
[1741029389869,0.945,577.95,576.32,1.27507133]
[1741029390063,0.945,577.95,576.33,0.28027171]
[1741029390261,0.945,577.95,576.32,1.27507133]
[1741029390262,0.945,577.95,576.34,0.28027171]
[1741029390464,0.945,577.95,576.35,0.28027171]
[1741029390769,0.945,577.95,576.36,0.28027171]
[1741029390968,0.945,577.95,576.37,0.28027171]
[1741029391163,0.945,577.95,576.38,0.28027171]
[1741029391369,0.945,577.95,576.39,0.62725899]
[1741029391567,0.945,577.95,576.83,1.27507133]
[1741029391761,0.945,577.95,576.84,0.28027171]
[1741029391967,0.945,577.95,576.85,0.28027171]
[1741029392166,0.945,577.95,576.86,0.28027171]
[1741029392369,0.945,577.95,576.87,0.28027171]
[1741029392566,0.945,577.95,576.88,0.28027171]
[1741029392866,0.945,577.95,576.89,0.28027171]
[1741029393068,0.945,577.95,576.9,0.28027171]
[1741029393270,0.945,577.95,576.91,0.28027171]
[1741029393464,0.945,577.95,576.92,0.28027171]
[1741029393663,0.945,577.95,576.93,0.28027171]
[1741029393969,0.945,577.95,576.94,0.28027171]
[1741029394171,0.945,577.95,576.95,0.28027171]
[1741029394464,0.945,577.95,576.96,0.28027171]
[1741029394664,0.945,577.95,576.97,0.28027171]
[1741029394868,0.945,577.95,577.29,1.27507133]
[1741029395069,0.945,577.95,577.3,0.28027171]
[1741029396574,0.945,577.95,577.29,1.27507133]
[1741029396871,0.945,577.95,577.3,0.28012055]
[1741029397266,0.945,577.95,576.9,0.28012055]
[1741029397571,0.945,577.95,576.91,0.28012055]
[1741029397768,0.945,577.95,576.92,0.28012055]
[1741029397970,0.945,577.95,576.93,0.28012055]
[1741029398171,0.945,577.95,576.9,0.28012055]
[1741029398367,0.945,577.95,576.91,0.28012055]
[1741029398570,0.945,577.95,576.92,0.28012055]
[1741029398770,0.945,577.95,576.93,0.28012055]
[1741029398970,0.945,577.95,576.9,0.28012055]
[1741029399271,0.945,577.95,576.91,0.28012055]
[1741029399570,0.945,577.95,576.57,2.60327065]
[1741029399571,0.34605668,577.94,576.92,0.28012055]
[1741029399872,0.34605668,577.94,576.72,0.28012055]
[1741029400071,0.34605668,577.94,576.73,0.28012055]
[1741029400272,0.34605668,577.94,576.71,1.27507133]
[1741029400273,0.34605668,577.94,576.74,0.28012055]
[1741029400572,0.34605668,577.94,576.76,0.34676468]
[1741029400773,0.34605668,577.94,576.77,0.28012055]
[1741029400977,0.34605668,577.94,576.78,0.28002678]
[1741029401170,0.34605668,577.94,576.79,0.28002678]
[1741029401371,0.34605668,577.94,576.77,0.28002678]
[1741029401571,0.34605668,577.94,576.76,0.34676468]
[1741029401572,0.34605668,577.94,576.78,0.28002678]
[1741029401876,0.34605668,577.94,576.79,0.28002678]
[1741029402068,0.34605668,577.94,576.8,0.28002678]
[1741029402269,0.34605668,577.94,576.77,0.28002678]
[1741029402473,0.34605668,577.94,576.76,0.34676468]
[1741029402474,0.34605668,577.94,576.78,0.28002678]
[1741029402674,0.34605668,577.94,576.79,0.28002678]
[1741029402874,0.34605668,577.94,576.8,0.28002678]
[1741029403073,0.34605668,577.94,576.76,0.34676468]
[1741029403074,0.34605668,577.94,576.81,0.28002678]
[1741029403381,0.34605668,577.94,576.82,0.28002678]
[1741029403579,0.34605668,577.94,576.83,0.28002678]
[1741029403780,0.34605668,577.94,576.84,0.28002678]
[1741029404185,0.34605668,577.94,576.85,0.28002678]
[1741029404382,0.34605668,577.94,576.86,0.28002678]
[1741029404680,0.34605668,577.94,576.87,0.28002678]
[1741029404883,0.34605668,577.94,576.78,0.28002678]
[1741029405084,0.34605668,577.94,576.77,1.27507133]
[1741029405085,0.34605668,577.94,576.79,0.28002678]
[1741029405286,0.34605668,577.94,576.8,0.28002678]
[1741029405486,0.34605668,577.94,576.81,0.28002678]
[1741029405685,0.945,577.95,576.81,0.28002678]
[1741029405986,0.945,577.95,576.82,0.28002678]